fUST/lending_fUST_20260524
["ID","MTS","AMOUNT","RATE_DAILY","PERIOD"]
[422896595,1779588638000,-500.0,0.00010826,2]
[422896601,1779588638000,-500.0,0.000111,2]
[422896594,1779588638000,-500.0,0.00010826,2]
[422896618,1779588638000,-500.0,0.00011648,2]
[422896615,1779588638000,-259.9039799,0.00011646,2]
[422896613,1779588638000,-500.0,0.00011646,2]
[422896619,1779588638000,-160.0,0.00011762,2]
[422896592,1779588638000,-560.89,0.00010824,2]
[422896621,1779588638000,-161.73758927,0.00011762,2]
[422896622,1779588638000,-500.0,0.0001192,2]
[422896623,1779588638000,-560.89,0.0001192,2]
[422896624,1779588638000,-500.0,0.00011922,2]
[422896625,1779588638000,-500.0,0.00012194,2]
[422896626,1779588638000,-560.89,0.00012194,2]
[422896627,1779588638000,-173.0185242,0.00012196,2]
[422896628,1779588638000,-864.0,0.00012252,2]
[422896629,1779588638000,-22460.76714273,0.0001237,2]
[422896630,1779588638000,-515974.0034757,0.0001237,2]
[422896617,1779588638000,-267.86038977,0.00011648,2]
[422896614,1779588638000,-560.89,0.00011646,2]
[422896620,1779588638000,-160.0,0.00011762,2]
[422896612,1779588638000,-2728.1901,0.00011383,2]
[422896596,1779588638000,-500.0,0.00010826,2]
[422896598,1779588638000,-500.0,0.00011098,2]
[422896606,1779588638000,-104.06845988,0.00011372,2]
[422896607,1779588638000,-560.89,0.00011372,2]
[422896597,1779588638000,-319.0,0.00011,2]
[422896600,1779588638000,-500.0,0.00011098,2]
[422896609,1779588638000,-500.0,0.00011374,2]
[422896590,1779588638000,-369.97455557,0.00010787,2]
[422896599,1779588638000,-560.89,0.00011098,2]
[422896608,1779588638000,-500.0,0.00011372,2]
[422896611,1779588638000,-500.0,0.00011374,2]
[422896610,1779588638000,-500.0,0.00011374,2]
[422896616,1779588638000,-309.15212122,0.00011648,2]
[422896604,1779588638000,-720.0,0.00011138,2]
[422896603,1779588638000,-500.0,0.000111,2]
[422896605,1779588638000,-395.93154012,0.00011372,2]
[422896602,1779588638000,-500.0,0.000111,2]
[422896635,1779588640000,-5000.0,9.631e-05,2]
[422896636,1779588640000,-76785.59810006,0.0001237,2]
[422896638,1779588643000,-1182.39083897,0.0001237,2]
[422896734,1779589596000,435.63330065,0.00014368,120]
[422896736,1779589620000,165.262009,4.782e-05,2]
[422896744,1779589757000,-420.0,8.359e-05,2]
[422896745,1779589757000,-214.96244303,9.562e-05,2]
[422896742,1779589757000,-300.0,7.599e-05,2]
[422896740,1779589757000,-5000.0,7.449e-05,2]
[422896741,1779589757000,-306.06313942,7.562e-05,2]
[422896743,1779589757000,-7109.82353732,7.6e-05,2]
[422896781,1779589831000,-138.68956108,9.514e-05,2]
[422896779,1779589831000,-4325.30046294,9.466e-05,2]
[422896785,1779589831000,-165.262009,9.563e-05,2]
[422896783,1779589831000,-156.95306669,9.514e-05,2]
[422896771,1779589831000,-674.69953706,9.466e-05,2]
[422896791,1779589831000,-356.96351702,0.00010552,2]
[422896793,1779589831000,-500.0,0.00010552,2]
[422896795,1779589831000,-500.0,0.00010552,2]
[422896797,1779589831000,-502.27668422,0.00010552,2]
[422896787,1779589831000,-60.27545885,0.00010552,2]
[422896802,1779589832000,-500.0,0.00010552,2]
[422896799,1779589832000,-387.58686242,0.00010552,2]
[422896805,1779589832000,-500.0,0.00010552,2]
[422896807,1779589832000,-500.0,0.00010552,2]
[422896810,1779589832000,-500.0,0.00010552,2]
[422896803,1779589832000,-500.0,0.00010552,2]
[422896813,1779589832000,-500.0,0.00010552,2]
[422896822,1779589832000,-500.0,0.00010552,2]
[422896818,1779589832000,-247.83475971,0.00010552,2]
[422896815,1779589832000,-215.3900853,0.00010552,2]
[422896820,1779589832000,-500.0,0.00010552,2]
[422896824,1779589832000,-495.05796733,0.00010552,2]
[422896926,1779589838000,-2514.18564231,0.00011375,2]
[422896924,1779589838000,-7020.789837,0.00010556,2]
[422896917,1779589838000,-500.0,0.00010552,2]
[422896913,1779589838000,-500.0,0.00010552,2]
[422896911,1779589838000,-500.0,0.00010552,2]
[422896920,1779589838000,-500.0,0.00010552,2]
[422896909,1779589838000,-500.0,0.00010552,2]
[422896907,1779589838000,-500.0,0.00010552,2]
[422896905,1779589838000,-4.94203267,0.00010552,2]
[422896941,1779589838000,-2196.69614528,0.00011375,2]
[422896915,1779589838000,-500.0,0.00010552,2]
[422896946,1779589838000,-500.0,0.00011603,2]
[422896922,1779589838000,-500.0,0.00010552,2]
[422896952,1779589838000,-160.0,0.00011778,2]
[422896967,1779589838000,-508.74937941,0.00012169,2]
[422896969,1779589838000,-178.75641894,0.0001217,2]
[422896965,1779589838000,-500.0,0.00012151,2]
[422896950,1779589838000,-161.73758927,0.00011778,2]
[422896960,1779589838000,-212.329,0.00011917,2]
[422896964,1779589838000,-500.0,0.00012151,2]
[422896958,1779589838000,-500.0,0.00011877,2]
[422896956,1779589838000,-500.0,0.00011877,2]
[422896948,1779589838000,-500.0,0.00011603,2]
[422896954,1779589838000,-2093.3348254,0.00011828,2]
[422896944,1779589838000,-348.85830077,0.00011514,2]
[422896962,1779589838000,-5039.41781683,0.000121,2]
[422897219,1779589840000,-786.88397015,0.0001217,2]
[422897479,1779589843000,-6425.6768635,0.0001217,2]
[422897488,1779589843000,-5502.35841072,0.0001217,2]
[422897497,1779589843000,-5029.77788828,0.0001217,2]
[422897491,1779589843000,-26054.62992482,0.0001217,2]
[422897494,1779589843000,-5284.15326649,0.0001217,2]
[422897501,1779589843000,-8545.19668423,0.0001217,2]
[422897516,1779589843000,-7157.73942638,0.0001217,2]
[422897517,1779589843000,-3928.60947472,0.0001217,2]
[422897518,1779589843000,-87141.17991469,0.0001217,2]
[422897499,1779589843000,-1591.27977177,0.0001217,2]
[422897853,1779589846000,-1572.82820681,0.0001217,2]
[422897855,1779589846000,-56798.88657607,0.0001217,2]
[422897808,1779589846000,-9566.40173126,0.0001217,2]
[422898115,1779589911000,-500.0,0.00010552,2]
[422898118,1779590270000,457.7,0.00017808,120]
[422898119,1779590299000,455.5,0.00017808,120]
[422898120,1779590334000,303.6,0.00017808,120]
[422898122,1779590851000,-287.63458838,0.00010213,2]
[422898123,1779590854000,-245.21967771,0.00010213,2]
[422898141,1779591032000,-2350.98971519,0.00010111,2]
[422898138,1779591032000,-2649.01028481,0.00010111,2]
[422898143,1779591032000,-289.30359917,0.00010368,2]
[422898147,1779591032000,-251.06,0.0001127,7]
[422898145,1779591032000,-200.0,0.0001127,2]
[422898149,1779591032000,-181.262175,0.00011728,2]
[422898153,1779591032000,-161.73758927,0.00011783,2]
[422898151,1779591032000,-169.864,0.00011731,2]
[422898159,1779591032000,-1306.11915194,0.000118,2]
[422898157,1779591032000,-623.19130257,0.000118,2]
[422898161,1779591032000,-1455.51707167,0.000118,2]
[422898172,1779591032000,-390.8578979,0.0001187,2]
[422898163,1779591032000,-1565.8977384,0.000118,2]
[422898165,1779591032000,-73953.17424829,0.0001187,2]
[422898168,1779591032000,-4240.55941701,0.0001187,2]
[422898170,1779591032000,-2502.46436448,0.0001187,2]
[422898155,1779591032000,-160.0,0.00011783,2]
[422898185,1779591038000,-27.24663086,0.0001187,2]
[422898187,1779591038000,-2028.97951315,0.0001187,2]
[422898186,1779591038000,-46588.51305982,0.0001187,2]
[422898190,1779591038000,-547177.24745892,0.0001187,2]
[422898188,1779591038000,-6778.79294667,0.0001187,2]
[422898234,1779592232000,-253.79742085,9.987e-05,2]
[422898232,1779592232000,-2026.32981004,9.987e-05,2]
[422898249,1779592232000,-1911.3437019,9.987e-05,2]
[422898251,1779592232000,-1200.0,0.00010087,2]
[422898253,1779592232000,-4794.20624427,0.00010088,2]
[422898255,1779592232000,-205.79375573,0.00010088,2]
[422898257,1779592232000,-122.19681974,0.00010341,2]
[422898247,1779592232000,-808.52906721,9.987e-05,2]
[422898443,1779592238000,-500.0,0.00011667,2]
[422898397,1779592238000,-177.80318026,0.00010341,2]
[422898401,1779592238000,-429.13048932,0.00010398,2]
[422898403,1779592238000,-1700.69758299,0.00010398,2]
[422898399,1779592238000,-290.33726009,0.00010345,2]
[422898406,1779592238000,-15.8243743,0.00010398,2]
[422898408,1779592238000,-3858.3122295,0.00010398,2]
[422898410,1779592238000,-41.34748598,0.00011125,2]
[422898425,1779592238000,-112.82883207,0.00011125,2]
[422898429,1779592238000,-495.91387167,0.00011125,2]
[422898427,1779592238000,-500.0,0.00011125,2]
[422898441,1779592238000,-500.0,0.00011667,2]
[422898431,1779592238000,-189.4982279,0.00011128,2]
[422898434,1779592238000,-500.0,0.00011667,2]
[422898460,1779592238000,-376104.69549761,0.0001167,2]
[422898439,1779592238000,-500.0,0.00011667,2]
[422898456,1779592238000,-500.0,0.00011668,2]
[422898452,1779592238000,-500.0,0.00011668,2]
[422898454,1779592238000,-500.0,0.00011668,2]
[422898458,1779592238000,-206.12456559,0.00011669,2]
[422898450,1779592238000,-500.0,0.00011668,2]
[422898447,1779592238000,-500.0,0.00011668,2]
[422898437,1779592238000,-500.0,0.00011667,2]
[422898445,1779592238000,-500.0,0.00011667,2]
[422898432,1779592238000,-152.0,0.00011275,7]
[422898449,1779592238000,-500.0,0.00011668,2]
[422898465,1779592239000,-276235.30673982,0.0001167,2]
[422898463,1779592239000,-476.10863222,0.0001167,2]
[422898711,1779592241000,-429.72297364,0.00010238,2]
[422899029,1779592243000,-500.0,0.00011667,2]
[422899030,1779592243000,-236.35741209,0.0001167,2]
[422899027,1779592243000,-3034.4183353,0.00010238,2]
[422899018,1779592243000,-1535.85869106,0.00010238,2]
[422899033,1779592244000,-431.83675393,0.0001167,2]
[422899066,1779592244000,-78900.88015877,0.0001167,2]
[422899064,1779592244000,-132079.50470029,0.0001167,2]
[422899035,1779592244000,-283.87210497,0.0001167,2]
[422899613,1779592250000,-500.0,0.00011942,2]
[422899614,1779592250000,-711.36971663,0.00011949,2]
[422899610,1779592250000,-376.27,0.00011941,2]
[422899612,1779592250000,-500.0,0.00011942,2]
[422899616,1779592250000,-500.0,0.00011969,2]
[422899607,1779592250000,-152.0,0.00011819,2]
[422899608,1779592250000,-1070.3238171,0.00011907,2]
[422899605,1779592250000,-161.73758927,0.00011785,2]
[422899604,1779592250000,-430941.18381776,0.0001167,2]
[422899603,1779592250000,-657.48855298,0.0001167,2]
[422899602,1779592250000,-15630.2,0.0001167,2]
[422899601,1779592250000,-965.14528569,0.0001167,2]
[422899600,1779592250000,-440.0,0.00011667,2]
[422899606,1779592250000,-160.0,0.00011785,2]
[422899609,1779592250000,-500.0,0.00011941,2]
[422899615,1779592250000,-2842.63338766,0.00011949,2]
[422899617,1779592250000,-181.262175,0.00012191,2]
[422899636,1779592250000,-500.0,0.00013038,2]
[422899635,1779592250000,-500.0,0.00012764,2]
[422899634,1779592250000,-500.0,0.00012764,2]
[422899633,1779592250000,-363.99592163,0.0001258,2]
[422899630,1779592250000,-174.617,0.0001237,2]
[422899632,1779592250000,-500.0,0.0001249,2]
[422899628,1779592250000,-600.0,0.00012311,2]
[422899611,1779592250000,-477.98334414,0.00011942,2]
[422899624,1779592250000,-222.002078,0.000122,2]
[422899629,1779592250000,-342.59796691,0.00012345,2]
[422899625,1779592250000,-228.63848625,0.000122,2]
[422899631,1779592250000,-500.0,0.0001249,2]
[422899627,1779592250000,-500.0,0.00012216,2]
[422899621,1779592250000,-213.45551088,0.000122,2]
[422899620,1779592250000,-174.57027232,0.000122,2]
[422899626,1779592250000,-500.0,0.00012216,2]
[422899645,1779592251000,-4535.47603521,0.00013503,2]
[422899637,1779592251000,-500.0,0.00013038,2]
[422899638,1779592251000,-1455.98368651,0.0001312,2]
[422899643,1779592251000,-435.63330065,0.00013486,7]
[422899641,1779592251000,-435.63330065,0.00013326,2]
[422899639,1779592251000,-500.0,0.00013312,2]
[422899642,1779592251000,-435.63330065,0.00013406,2]
[422899649,1779592251000,-500.0,0.00013586,2]
[422899646,1779592251000,-720.0,0.00013542,2]
[422899647,1779592251000,-435.63330065,0.00013566,7]
[422899650,1779592251000,-59863.3088042,0.00013599,2]
[422899651,1779592251000,-306.21366072,0.00013599,2]
[422899652,1779592251000,-305.84555996,0.00013599,2]
[422899644,1779592251000,-500.0,0.00013493,2]
[422899640,1779592251000,-500.0,0.00013312,2]
[422899648,1779592251000,-500.0,0.00013586,2]
[422899680,1779593432000,-561.14638683,0.00010985,2]
[422899773,1779593438000,-163.50334709,0.00013624,2]
[422899741,1779593438000,-500.0,0.00012,2]
[422899745,1779593438000,-3272.68733136,0.000122,2]
[422899743,1779593438000,-249.6497702,0.00012042,2]
[422899771,1779593438000,-500.0,0.00013599,2]
[422899736,1779593438000,-4438.85361317,0.00010985,2]
[422899739,1779593438000,-277.67855555,0.0001128,2]
[422899747,1779593438000,-167.59467322,0.00012223,2]
[422899750,1779593438000,-151.0,0.00012875,2]
[422899752,1779593438000,-1000.48492266,0.00012999,2]
[422899749,1779593438000,-152.0,0.00012741,2]
[422899758,1779593438000,-160.0,0.000132,6]
[422899754,1779593438000,-152.0,0.00013114,7]
[422899756,1779593438000,-152.0,0.00013114,7]
[422899763,1779593438000,-160.0,0.0001328,2]
[422899760,1779593438000,-160.0,0.000132,7]
[422899767,1779593438000,-327.66069555,0.0001328,2]
[422899769,1779593438000,-500.0,0.00013599,2]
[422899765,1779593438000,-161.73758927,0.0001328,2]
[422899761,1779593438000,-160.0,0.000132,5]
[422900440,1779593444000,-435.63330065,0.00013646,7]
[422900442,1779593444000,-518.76050716,0.00013698,2]
[422900444,1779593444000,-500.0,0.00013698,2]
[422900452,1779593444000,-247.94641959,0.00013699,2]
[422900435,1779593444000,-21.49665291,0.00013624,2]
[422900453,1779593444000,-495.89283919,0.00013699,2]
[422900448,1779593444000,-1128.891956,0.00013699,2]
[422900437,1779593444000,-445.259,0.00013624,2]
[422900455,1779593444000,-1487.0,0.00013699,2]
[422900450,1779593444000,-1000.0,0.00013699,2]
[422900457,1779593444000,-361.8538106,0.00013699,2]
[422900446,1779593444000,-180.21729352,0.00013699,2]
[422900461,1779593444000,-174.617,0.00013726,2]
[422900471,1779593444000,-435.63330065,0.00013887,14]
[422900475,1779593444000,-161.04185122,0.000139,9]
[422900477,1779593444000,-10596.2782271,0.000139,2]
[422900473,1779593444000,-294.28719591,0.00013899,2]
[422900465,1779593444000,-748.17447778,0.000138,21]
[422900480,1779593444000,-4253.12069302,0.000139,2]
[422900463,1779593444000,-435.63330065,0.00013726,14]
[422900498,1779593444000,-20541.1193907,0.000139,2]
[422900467,1779593444000,-435.63330065,0.00013807,14]
[422900469,1779593444000,-600.0,0.0001387,2]
[422900459,1779593444000,-794.0,0.000137,2]
[422900892,1779593447000,-5000.0,0.00013487,2]
[422900894,1779593447000,-15165.67121127,0.000139,2]
[422900902,1779593447000,-63266.93212885,0.000139,2]
[422900896,1779593447000,-1025.76618042,0.000139,2]
[422900910,1779593447000,-991.39730097,0.000139,2]
[422902089,1779594439000,-287.63458838,0.00012687,2]
[422902133,1779594632000,-911.98338554,0.0001256,2]
[422902134,1779594632000,-272.49138048,0.00012854,2]
[422902138,1779594632000,-152.0,0.00013119,7]
[422902137,1779594632000,-456.6813334,0.00012896,2]
[422902126,1779594632000,-1547.61267967,0.0001256,2]
[422902128,1779594632000,-269.52946695,0.0001256,2]
[422902130,1779594632000,-2270.87446784,0.0001256,2]
[422902140,1779594632000,-152.0,0.00013339,7]
[422902149,1779594632000,-184.0,0.00013599,2]
[422902151,1779594632000,-1900.0,0.000136,2]
[422902143,1779594632000,-1004.8279972,0.00013514,2]
[422902145,1779594632000,-160.0,0.00013542,2]
[422902147,1779594632000,-161.73758927,0.00013542,2]
[422902153,1779594632000,-2060.75946276,0.000136,2]
[422902155,1779594632000,-545.83712939,0.000136,2]
[422902157,1779594632000,-3155.14385043,0.000136,2]
[422902161,1779594632000,-3082.32694291,0.000136,2]
[422902159,1779594632000,-410.71337545,0.000136,2]
[422902164,1779594632000,-575.92824447,0.000136,2]
[422902166,1779594633000,-4188.51933734,0.000136,2]
[422902233,1779594639000,-500.0,0.00013695,2]
[422902236,1779594639000,-564.445978,0.00013699,2]
[422902237,1779594639000,-178.147,0.00013699,2]
[422902231,1779594639000,-180.87611261,0.00013692,2]
[422902238,1779594639000,-2227.4546848,0.000137,2]
[422902230,1779594639000,-501.91044933,0.00013687,2]
[422902226,1779594639000,-236047.3536612,0.000136,2]
[422902228,1779594639000,-443.0,0.00013614,2]
[422902227,1779594639000,-1004.82799716,0.00013611,2]
[422902239,1779594639000,-112532.4627184,0.000137,2]
[422902225,1779594639000,-1200.0,0.000136,2]
[422902224,1779594639000,-45708.52539152,0.000136,2]
[422902223,1779594639000,-5000.0,0.00012434,2]
[422902229,1779594639000,-185.0,0.00013614,2]
[422902234,1779594639000,-261.72262418,0.00013698,2]
[422902249,1779594639000,-435.63330065,0.00013967,30]
[422902235,1779594639000,-1000.0,0.00013699,2]
[422902252,1779594639000,-15000.0,0.00013976,2]
[422902241,1779594639000,-480.2173936,0.00013709,2]
[422902251,1779594639000,-600.0,0.00013971,2]
[422902240,1779594639000,-1004.82799716,0.00013707,2]
[422902253,1779594639000,-261448.57816986,0.00014,2]
[422902243,1779594639000,-164.6196209,0.00013718,2]
[422902242,1779594639000,-455.9198614,0.00013718,2]
[422902244,1779594639000,-1004.82799716,0.00013804,2]
[422902246,1779594639000,-4081.92843168,0.000139,2]
[422902247,1779594639000,-4638.0,0.00013967,2]
[422902248,1779594639000,-178.0,0.00013967,2]
[422902245,1779594639000,-1004.82799716,0.000139,2]
[422902250,1779594639000,-500.0,0.00013969,2]
[422902232,1779594639000,-537.6845,0.00013692,2]
[422902288,1779594644000,-2930.75701118,0.00014,2]
[422902287,1779594644000,-2765.24298882,0.00014,2]
[422902294,1779594647000,-368.1946,0.00014,2]
[422902293,1779594647000,-18820.60980175,0.00014,2]
[422902297,1779594992000,152.47485356,0.0001659,120]
[422902362,1779595832000,-304.45979512,0.00012825,2]
[422902360,1779595832000,-377.79288211,0.00012825,2]
[422902354,1779595832000,-1980.1863641,0.00012825,2]
[422902358,1779595832000,-1309.63662955,0.00012825,2]
[422902426,1779595838000,-273.83713597,0.00013046,2]
[422902427,1779595838000,-736.55525081,0.000135,2]
[422902425,1779595838000,-300.09934882,0.00012825,2]
[422902424,1779595838000,-727.8249803,0.00012825,2]
[422902428,1779595840000,-908.36082376,0.000135,2]
[422902429,1779595840000,-464.18350762,0.000135,2]
[422902430,1779595840000,-180.3,0.00013547,2]
[422902432,1779595840000,-180.31,0.00013551,2]
[422902433,1779595840000,-139.28436432,0.00013573,7]
[422902431,1779595840000,-180.3,0.00013549,2]
[422902438,1779595843000,-3634.422095,0.00013365,2]
[422902440,1779595843000,-736.79034042,0.00013365,2]
[422902444,1779595843000,-225.96974463,0.00013698,2]
[422902446,1779595843000,-282.222989,0.00013699,2]
[422902439,1779595843000,-628.78756458,0.00013365,2]
[422902447,1779595843000,-158.00055558,0.00013699,2]
[422902443,1779595843000,-160.0,0.00013675,2]
[422902441,1779595843000,-12.71563568,0.00013573,7]
[422902442,1779595843000,-161.73758927,0.00013675,2]
[422902445,1779595843000,-74.03025537,0.00013698,2]
[422902455,1779595846000,-5413.42916268,0.00013768,2]
[422902452,1779595846000,-841.99944442,0.00013699,2]
[422902453,1779595846000,-116.50055558,0.00013725,2]
[422902454,1779595846000,-340.12204272,0.00013725,2]
[422902456,1779595846000,-18713.86454912,0.00013768,2]
[422902462,1779595846000,-1654.03763697,0.000139,2]
[422902457,1779595846000,-253.84044814,0.00013769,2]
[422902461,1779595846000,-1532.24713814,0.000139,2]
[422902460,1779595846000,-1373.62182722,0.000139,2]
[422902459,1779595846000,-653.16804173,0.000139,2]
[422902463,1779595846000,-2987.43715165,0.000139,2]
[422902458,1779595846000,-500.0,0.00013898,2]
[422902471,1779596971000,-5000.0,7.449e-05,2]
[422902473,1779596971000,-7484.76719224,7.6e-05,2]
[422902474,1779596971000,-292.36632841,7.751e-05,2]
[422902472,1779596971000,-268.36039325,7.562e-05,2]
[422902504,1779597034000,-669.85014291,9.466e-05,2]
[422902708,1779597038000,-500.0,0.00013798,2]
[422902677,1779597038000,-185.0,0.00013614,2]
[422902680,1779597038000,-1000.0,0.00013699,2]
[422902678,1779597038000,-443.0,0.00013614,2]
[422902675,1779597038000,-152.0,0.00013574,7]
[422902673,1779597038000,-413.2750056,0.00013562,2]
[422902695,1779597038000,-500.0,0.00013798,2]
[422902693,1779597038000,-507.11190628,0.00013798,2]
[422902691,1779597038000,-500.0,0.00013798,2]
[422902684,1779597038000,-159.10739198,0.00013699,2]
[422902689,1779597038000,-500.0,0.00013798,2]
[422902686,1779597038000,-377.31553592,0.0001372,2]
[422902682,1779597038000,-282.2229894,0.00013699,2]
[422902671,1779597038000,-160.0,0.00013462,2]
[422902652,1779597038000,-316.66526403,9.562e-05,2]
[422902669,1779597038000,-139.59903674,0.00013462,2]
[422902656,1779597038000,-166.46234739,0.00013108,60]
[422902654,1779597038000,-364.97013482,0.00011562,2]
[422902650,1779597038000,-1930.79987365,9.466e-05,2]
[422902648,1779597038000,-2399.34998344,9.466e-05,2]
[422902688,1779597038000,-456.6813334,0.00013725,2]
[422902711,1779597038000,-446.15701431,0.00013798,2]
[422902658,1779597038000,-22.13855253,0.00013462,2]
[422902715,1779597038000,-255.21654814,0.00013798,2]
[422902713,1779597038000,-500.0,0.00013798,2]
[422902750,1779597038000,-362.16793648,0.00014,2]
[422902747,1779597038000,-754.31450072,0.00014,2]
[422902745,1779597038000,-1432544.3333113,0.00014,2]
[422902742,1779597038000,-155.0,0.00013967,2]
[422902740,1779597038000,-3673.73558844,0.000139,2]
[422902734,1779597038000,-500.0,0.00013799,2]
[422902738,1779597038000,-374.10093068,0.000139,2]
[422902726,1779597038000,-500.0,0.00013798,2]
[422902732,1779597038000,-206.00103714,0.00013799,2]
[422902729,1779597038000,-178.147,0.00013799,2]
[422902736,1779597038000,-183940.0090871,0.000138,2]
[422902728,1779597038000,-500.0,0.00013798,2]
[422902720,1779597038000,-500.0,0.00013798,2]
[422902722,1779597038000,-432.41245434,0.00013798,2]
[422902703,1779597038000,-500.0,0.00013798,2]
[422902705,1779597038000,-500.0,0.00013798,2]
[422902706,1779597038000,-500.0,0.00013798,2]
[422902701,1779597038000,-500.0,0.00013798,2]
[422902717,1779597038000,-500.0,0.00013798,2]
[422902699,1779597038000,-508.15696696,0.00013798,2]
[422902723,1779597038000,-500.0,0.00013798,2]
[422902697,1779597038000,-500.0,0.00013798,2]
[422903224,1779597044000,-381.36998723,0.0001425,30]
[422903225,1779597044000,-435.63330065,0.00014288,60]
[422903217,1779597044000,-435.63330065,0.00014047,30]
[422903220,1779597044000,-435.63330065,0.00014127,60]
[422903219,1779597044000,-600.0,0.00014073,2]
[422903228,1779597044000,-195.85437273,0.00014325,21]
[422903222,1779597044000,-435.63330065,0.00014207,60]
[422903221,1779597044000,-500.0,0.0001418,2]
[422903230,1779597044000,-5000.0,0.00014335,2]
[422903226,1779597044000,-2139.2401922,0.00014289,21]
[422903218,1779597044000,-500.0,0.00014073,2]
[422903213,1779597044000,-501.224901,0.00014,2]
[422903204,1779597044000,-3154.85382706,0.00014,2]
[422903215,1779597044000,-151.0,0.00014,2]
[422903223,1779597044000,-500.0,0.0001424,2]
[422903214,1779597044000,-501.224901,0.00014,2]
[422903209,1779597044000,-151.0,0.00014,2]
[422903207,1779597044000,-151.0,0.00014,2]
[422903206,1779597044000,-113243.40922559,0.00014,2]
[422903208,1779597044000,-151.0,0.00014,2]
[422903202,1779597044000,-206777.9013739,0.00014,2]
[422903211,1779597044000,-501.224901,0.00014,2]
[422903212,1779597044000,-501.224901,0.00014,2]
[422903227,1779597044000,-151.15,0.000143,2]
[422903210,1779597044000,-151.0,0.00014,2]
[422903201,1779597044000,-251.54369061,0.0001372,2]
[422903216,1779597044000,-621.48,0.00014,2]
[422903239,1779597044000,-151.0,0.00014795,2]
[422903237,1779597044000,-3673.73558844,0.00014429,2]
[422903229,1779597044000,-5000.0,0.00014335,2]
[422903258,1779597044000,-8012.81562802,0.00015,2]
[422903256,1779597044000,-156.10915148,0.00014968,60]
[422903257,1779597044000,-152.90498974,0.00015,2]
[422903259,1779597044000,-810593.70559189,0.00015,2]
[422903255,1779597044000,-155.0,0.00014967,2]
[422903254,1779597044000,-3673.73558844,0.00014959,2]
[422903253,1779597044000,-151.0,0.000149,2]
[422903238,1779597044000,-6641.09,0.00014795,2]
[422903246,1779597044000,-501.224901,0.00014795,2]
[422903247,1779597044000,-460.58098896,0.000149,2]
[422903243,1779597044000,-501.224901,0.00014795,2]
[422903245,1779597044000,-501.224901,0.00014795,2]
[422903244,1779597044000,-501.224901,0.00014795,2]
[422903252,1779597044000,-401.23565488,0.000149,2]
[422903248,1779597044000,-460.58098895,0.000149,2]
[422903240,1779597044000,-151.0,0.00014795,2]
[422903232,1779597044000,-5000.0,0.00014335,2]
[422903233,1779597044000,-5000.0,0.00014335,2]
[422903235,1779597044000,-493.88893939,0.00014347,2]
[422903236,1779597044000,-160.0,0.00014429,3]
[422903231,1779597044000,-5000.0,0.00014335,2]
[422903241,1779597044000,-251.5,0.00014795,2]
[422903250,1779597044000,-401.2356549,0.000149,2]
[422903242,1779597044000,-193.754114,0.00014795,2]
[422903249,1779597044000,-460.58098895,0.000149,2]
[422903251,1779597044000,-401.23565488,0.000149,2]
[422903234,1779597044000,-5008.30502997,0.00014335,2]
[422903266,1779597046000,-21638.30471341,0.00015,2]
[422903265,1779597046000,-167.69579374,0.0001372,2]
[422903271,1779598032000,-287.63458838,0.00012181,2]
[422903272,1779598041000,-215.08914493,0.00012181,2]
[422903653,1779598238000,-500.0,0.00013122,2]
[422903652,1779598238000,-500.0,0.00013122,2]
[422903642,1779598238000,-195.0240609,0.00013122,2]
[422903635,1779598238000,-1200.0,0.00012625,2]
[422903631,1779598238000,-154.91009365,0.00012059,2]
[422903641,1779598238000,-2590.07857218,0.00013027,2]
[422903639,1779598238000,-2247.96754264,0.00012827,2]
[422903644,1779598238000,-500.0,0.00013122,2]
[422903640,1779598238000,-2380.35588014,0.00012927,2]
[422903638,1779598238000,-2170.6331881,0.00012727,2]